Cogmind - Beta 15 @@@ ROGUE MODE // 2025.10.04 @ 13:07:20 Player: Sunvar Result: Destroyed by JP-01K(R) with Subdweller Laser Performance ------------- Evolutions (0) 0 Regions Visited (2) 400 Robots Destroyed (18) 90 Value Destroyed (497) 497 Prototype IDs (0) 0 Alien Tech Used (0) 0 Bonus (-65) -65 TOTAL SCORE: 922 Bonus ------- Friendly Fire -65 Cogmind --------- Core Integrity 0/250 Matter 294/300 Energy 194/200 System Corruption 0% Temperature Cool (21) Movement Treading (360) Ox2 Location -10/Subcaves Parts ------- > --- POWER (1) -------- Subdweller Power Source > --- PROPULSION (2) --- Spiked Treads Compact Wheel > --- UTILITY (2) ------ High-capacity Storage Unit Makeshift Light Armor Plating > --- WEAPON (2) ------- Subdweller Beam Cannon Light Assault Rifle > --- INVENTORY (20) --- Light Treads Light Treads Light Treads Light Treads Light Treads Myomer Leg Wheel Subdweller Optics Makeshift Light Armor Plating Scrap Shield Hacking Suite Subdweller Laser Battle Cannon Rocket Launcher Flail Peak State ------------ > --- POWER ------------ Subdweller Power Source > --- PROPULSION ------- Spiked Treads Compact Wheel > --- UTILITY ---------- High-capacity Storage Unit Makeshift Light Armor Plating > --- WEAPON ----------- Subdweller Beam Cannon Light Assault Rifle > --- INVENTORY -------- Light Treads Light Treads Light Treads Light Treads Light Treads Myomer Leg Wheel Subdweller Optics Makeshift Light Armor Plating Scrap Shield Hacking Suite Subdweller Laser Battle Cannon Rocket Launcher Flail [Rating: 16] Favorites ----------- Power Ion Engine Engine Ion Engine Propulsion Light Treads Treads Light Treads Leg Aluminum Leg Wheel Compact Wheel Utility High-capacity Storage Unit Device Seismic Detector Storage High-capacity Storage Unit Protection Makeshift Light Armor Plating Weapon Assault Rifle Energy Gun EM Pulse Gun Energy Cannon Subdweller Beam Cannon Ballistic Gun Assault Rifle Ballistic Cannon Light Cannon Launcher Rocket Launcher Impact Weapon Flail Build | -11 -10 -10 ------- Run | Yrd Mat Sub Slots Evolved . | . . . Power . | . . . Propulsion . | . . . Utility . | . . . Weapon . | . . . Parts Attached 19 | . 10 9 Power 2 | . 1 1 Engine 2 | . 1 1 Core . | . . . Reactor . | . . . Propulsion 6 | . 4 2 Treads 4 | . 2 2 Leg 1 | . 1 . Wheel 1 | . 1 . Hover . | . . . Flight . | . . . Utility 4 | . 2 2 Device 2 | . 1 1 Storage 1 | . 1 . Processor . | . . . Hackware . | . . . Protection 1 | . . 1 Artifact . | . . . Weapon 7 | . 3 4 Energy Gun . | . . . Energy Cannon 1 | . . 1 Ballistic Gun 2 | . 2 . Ballistic Cannon 2 | . 1 1 Launcher 1 | . . 1 Special Weapon . | . . . Impact Weapon 1 | . . 1 Slashing Weapon . | . . . Piercing Weapon . | . . . Special Melee Weapon . | . . . Unidentified Prototypes . | . . . Parts Lost 6 | . . 6 Power 1 | . . 1 Propulsion 1 | . . 1 Utility 1 | . . 1 Weapon 3 | . . 3 Highest Loss Streak 4 | . . 4 To Critical Strikes . | . . . Average Backups 10 | . 9 12 Power . | . . . Propulsion 5 | . 4 7 Utility 1 | . . 2 Weapon 2 | . 2 2 Tool/Special . | . . . Unused Backups 16 | . 5 11 Power . | . . . Propulsion 9 | . 3 6 Utility 4 | . 1 3 Weapon 3 | . 1 2 Tool/Special . | . . . Average Slot Usage (%) 93 | . 97 89 Engine 13 | . 14 12 Treads 10 | . 6 13 Leg 8 | . 17 . Wheel 9 | . 4 14 Device 8 | . 12 5 Storage 14 | . 14 14 Ballistic Gun 23 | . 24 21 Ballistic Cannon 2 | . 2 3 Peak Build Rating 16 | . 8 16 Average Rating 8 | . 7 9 On Entrance 6 | 6 6 8 Naked Turns . | . . . Heaviest Build 58 | 14 49 58 Greatest Support 40 | 20 40 20 Greatest Overweight (x) 3 | . 3 3 Average Overweight (x) 1 | . . 2 Largest Inventory Capacity 20 | . 20 20 Average Capacity 16 | . 12 20 Most Carried 16 | . 12 16 Average Carried 11 | . 9 13 Final Capacity 20 | 8 20 20 Final Carried 16 | 6 12 16 Class Distribution -------------------- 100% | Mutant Dominant Class ---------------- Mutant | -10/Materials Mutant | -10/Subcaves Resources | -11 -10 -10 ----------- Run | Yrd Mat Sub Matter Collected 760 | 200 173 387 Remotely . | . . . Salvage Created 588 | . 271 317 Parts 46 | . 18 28 Haulers Intercepted 1 | . 1 . Recyclers Shooed . | . . . Parts Field Recycled . | . . . Retrieved Matter . | . . . Parts Self-Destructed 13 | . . 13 Prevented . | . . . Kills | -11 -10 -10 ------- Run | Yrd Mat Sub Combat Hostiles Destroyed 16 | . 7 9 Guns 13 | . 7 6 Cannons 3 | . . 3 Classes Destroyed 6 | . 4 2 Hauler 1 | . 1 . Operator 1 | . 1 . Swarmer 5 | . 3 2 Grunt 4 | . 4 . Subdweller 7 | . . 7 Scientist 1 | . . 1 Best Kill Streak 3 | . 3 3 Combat Bots Only 3 | . 3 3 Max Kills in Single Turn 2 | . 1 2 Gunslinging 1 | . . 1 Exploded . | . . . Melee . | . . . Uniques/NPCs Destroyed . | . . . Combat | -11 -10 -10 -------- Run | Yrd Mat Sub Hostile Shots Fired 116 | . 18 98 Missed 42 | . 5 37 Hits 74 | . 13 61 Projectile 74 | . 13 61 Critical Strikes 2 | . . 2 Damage Taken 1203 | . 147 1056 Core 256 | . 42 214 Absorbed by Shields . | . . . Core Remaining (%) 100 | 100 . . Volleys Fired 75 | . 36 39 Largest 2 | . 2 2 Hottest 100 | . 50 100 Shots Fired 138 | . 72 66 Gun 105 | . 67 38 Cannon 30 | . 5 25 Launcher 3 | . . 3 Special . | . . . Kinetic 134 | . 72 62 Thermal 1 | . . 1 Explosive 3 | . . 3 Electromagnetic . | . . . Robot Hit Streak 17 | . 5 17 Robot Miss Streak 9 | . 9 2 Penetration Max . | . . . Secondary Targets 1 | . . 1 Max Gunslinging Chain 1 | . . 1 Shots Hit Robots 95 | . 44 51 Core Hits 36 | . 15 21 Critical Kills . | . . . Critical Parts Destroyed . | . . . Critical Strikes 2 | . . 2 Blast 2 | . . 2 Melee Attacks . | . . . Impact . | . . . Slashing . | . . . Piercing . | . . . Sneak Attacks . | . . . Combat Hostiles . | . . . Follow-up Attacks . | . . . Damage Inflicted 1364 | . 540 824 Guns 841 | . 451 390 Cannons 406 | . 89 317 Explosions 117 | . . 117 Melee . | . . . Ramming . | . . . Kinetic 1218 | . 540 678 Thermal 29 | . . 29 Explosive 117 | . . 117 Electromagnetic . | . . . Impact . | . . . Slashing . | . . . Piercing . | . . . Highest Corruption . | . . . Average Corruption . | . . . Corruption Purged . | . . . Corruption Blocked . | . . . Overload Shots . | . . . Overflow Damage . | . . . Projectiles . | . . . Explosions . | . . . Melee . | . . . Knockbacks 2 | . . 2 Impact . | . . . Kinetic 2 | . . 2 Secondary . | . . . Self-Inflicted Damage 49 | . . 49 Shots 1 | . . 1 Rammed . | . . . Targets Rammed . | . . . Kicked . | . . . Crushed . | . . . Highest Temperature 15 | . 9 15 Average Temperature 8 | . 7 15 Received Heat Transfer 363 | . 60 303 Siege Activations . | . . . Martial Activations . | . . . Shielding Activations . | . . . Robots Disrupted . | . . . Combat Hostiles . | . . . Robots Corrupted . | . . . Combat Hostiles . | . . . Parts Fried . | . . . Impact Corruptions . | . . . Robots Melted . | . . . Combat Hostiles . | . . . Parts Melted . | . . . Heat Transferred 37 | . . 37 Parts Sabotaged . | . . . Parts Stolen . | . . . Parts Stripped . | . . . Power Chain Reactions . | . . . Alert | -11 -10 -10 ------- Run | Yrd Mat Sub Maximum Alert Level . | . . . Low Security (%) 100 | . 100 . Level 1 . | . . . Level 2 . | . . . Level 3 . | . . . Level 4 . | . . . Level 5 . | . . . High Security . | . . . Max Security . | . . . Peak Influence 60 | . 60 . Initial . | . . . Average 13 | . 13 . Influence Increases 326 | . 196 130 Destroy 0b10 Robot/C 180 | . 140 40 Destroy 0b10 Robot/NC 10 | . 10 . Destroy Leader 32 | . 32 . Successful Hack 14 | . 14 . Lose Combat Pursuer 90 | . . 90 Influence Decreases 326 | . 196 130 Time Decay 316 | . 196 120 Lost Part 10 | . . 10 Squads Dispatched 2 | . 2 . Investigation . | . . . Extermination . | . . . Reinforcement 2 | . 2 . Assault . | . . . Garrison . | . . . Intercept . | . . . Searches Triggered . | . . . Construction Impeded . | . . . Haulers Reinforced . | . . . Active Scanning Responses . | . . . Cargo Convoy Interrupts . | . . . Stealth | -11 -10 -10 --------- Run | Yrd Mat Sub Distress Signals 2 | . 2 . Communications Jammed . | . . . Distress Signals . | . . . Times Spotted 33 | . 15 18 Peak Tracking Total 6 | . 4 6 Tactical Retreats 3 | . . 3 Traps | -11 -10 -10 ------- Run | Yrd Mat Sub Traps Triggered . | . . . Indirectly . | . . . Trap Hack Attempts . | . . . Triggered . | . . . Disarmed . | . . . Reprogrammed . | . . . Reused . | . . . Traps Extracted . | . . . Installed . | . . . Triggered . | . . . Machines | -11 -10 -10 ---------- Run | Yrd Mat Sub Machines Disabled 2 | . . 2 Max in Single Turn 2 | . . 2 Machines Repaired . | . . . Machines Dismantled . | . . . Machines Sabotaged . | . . . Overloaded Fab Kills . | . . . Hacking | -11 -10 -10 --------- Run | Yrd Mat Sub Machines Accessed 3 | . 3 . Terminals 3 | . 3 . Fabricators . | . . . Repair Stations . | . . . Recycling Units . | . . . Scanalyzers . | . . . Garrison Access . | . . . Total Hacks 15 | . 15 . Successful 9 | . 9 . Failed 6 | . 6 . Catastrophic . | . . . Database Lockouts . | . . . Manual 9 | . 9 . Terminals 15 | . 15 . Fabricators . | . . . Repair Stations . | . . . Recycling Units . | . . . Scanalyzers . | . . . Garrison Access . | . . . Terminal Hacks 5 | . 5 . Branch Access Points 1 | . 1 . Locate Traps 3 | . 3 . Registered Components 1 | . 1 . Fabricator Hacks . | . . . Repair Station Hacks . | . . . Recycling Unit Hacks . | . . . Scanalyzer . | . . . Garrison Access Hacks . | . . . Unauthorized Hacks 4 | . 4 . Terminals 4 | . 4 . Botnet 2 | . 2 . Skim 2 | . 2 . Fabricators . | . . . Repair Stations . | . . . Recycling Units . | . . . Scanalyzers . | . . . Garrison Access . | . . . Data Cores Recovered . | . . . Used . | . . . Hacking Detections 3 | . 3 . Full Trace Events . | . . . Feedback Events . | . . . Feedback Blocked . | . . . Robot Schematics Acquired . | . . . Robots Built . | . . . Authchips . | . . . Time . | . . . Total Robot Build Rating . | . . . Part Schematics Acquired . | . . . Parts Built . | . . . Authchips . | . . . Time . | . . . Total Part Build Rating . | . . . Parts Repaired . | . . . Time . | . . . Parts Recycled . | . . . Recycled Matter . | . . . Retrieved Matter . | . . . Retrieved Components . | . . . Parts Scanalyzed . | . . . Part Schematics Acquired . | . . . Parts Damaged . | . . . Bothacking | -11 -10 -10 ------------ Run | Yrd Mat Sub Used RIF Installer . | . . . Robots Hacked . | . . . Non-combat . | . . . Combat . | . . . Robot Hacks Applied . | . . . Relay Couplers Released . | . . . Fabnet Peak Effective % . | . . . Robots Rewired . | . . . Allies Hacked . | . . . Hacks Repelled . | . . . Allies | -11 -10 -10 -------- Run | Yrd Mat Sub Total Allies . | . . . Largest Group . | . . . Highest-Rated Group . | . . . Highest-Rated Ally . | . . . Total Orders . | . . . Ally Attacks . | . . . Total Damage . | . . . Kills . | . . . Allies Corrupted . | . . . Allies Melted . | . . . Intel | -11 -10 -10 ------- Run | Yrd Mat Sub Active Infowar (turns) 1118 | . 780 338 Optics 79 | . . 79 Seismic 1039 | . 780 259 Robot Analysis Total . | . . . Derelict Logs Recovered . | . . . Drone Launches . | . . . Drone Recoveries . | . . . Exploration | -11 -10 -10 ------------- Run | Yrd Mat Sub Turns Passed 1760 | . 878 882 Spaces Moved 787 | 1 349 437 Core . | . . . Treads 46 | . 26 20 Legs 239 | 1 238 . Wheels 502 | . 85 417 Hover . | . . . Flight . | . . . Fastest Speed 120 | 120 120 130 Average Speed 139 | 120 131 145 Slowest Speed 360 | 120 240 360 Overloaded Moves . | . . . Propulsion Burnouts . | . . . Robots Hopped . | . . . Potential Cave-ins . | . . . Cave-ins Triggered . | . . . Exploration Rate (%) 29 | 2 59 27 Regions Visited 2 Branch Regions 1 Pre-discovered Areas . | . . . Known Exits Taken . | . . . Unknown Exits Taken 2 | 1 1 . Scrap Searched 6 | . . 6 Spaces Dug . | . . . Terrain Destroyed 17 | . . 17 Melee . | . . . Projectile . | . . . AOE 17 | . . 17 Terrain Rammed . | . . . Walls Destroyed . | . . . Machines Disabled . | . . . Actions | -11 -10 -10 --------- Run | Yrd Mat Sub Total 1319 | . 704 615 Wait 402 | . 282 120 Move 785 | . 348 437 Hop . | . . . Pick Up 21 | . 15 6 Fast Attach 6 | . 3 3 Attach 6 | . 3 3 Detach 2 | . 2 . Swap 10 | . 4 6 Drop 12 | . 11 1 Fire 75 | . 36 39 Melee . | . . . Ram . | . . . Kick . | . . . Crush . | . . . Escape Stasis . | . . . Rewire . | . . . Trap . | . . . Miscellaneous . | . . . Route ------- -11/Scrapyard -10/Materials (discovered 4 exits: [*Mat x2] / *Min / [*Sub]) -10/Subcaves (discovered 1 exit: [*Rec]) History --------- Turn | Location | Event 1 | -11/Scrapyard | Discovered new exit (range 0) 1 | -11/Scrapyard | Entered Materials 50 | -10/Materials | Discovered new exit (range 8) 124 | -10/Materials | Discovered new exit (range 8) 308 | -10/Materials | Build established: Mutant 555 | -10/Materials | Identified exit to Mines 622 | -10/Materials | Discovered new exit (range 14) 849 | -10/Materials | Discovered new exit (range 8) 879 | -10/Materials | Entered Subcaves 880 | -10/Subcaves | Approached by a straggling Scientist 1013 | -10/Subcaves | Discovered new exit (range 13) 1017 | -10/Subcaves | Ambushed by Subdweller buried in earth 1143 | -10/Subcaves | Ambushed by swarm of Subdwellers 1182 | -10/Subcaves | Core integrity fell below 50% 1235 | -10/Subcaves | Lost 4 parts (1p1n2w) 1618 | -10/Subcaves | Core integrity fell below 20% 1761 | -10/Subcaves | Destroyed by JP-01K(R) with Subdweller Laser Last Messages --------------- 01664_ Found 52 Matter. 01665_ Acquired 47 matter. 01667_ Acquired Sub. Laser. 01669_ Acquired Mak. Light Armor Plating. 01673_ Searching scrap... 01673_ Found Battle Cannon. 01673_ Found 50 Matter. 01676_ Acquired Battle Cannon. 01678_ Searching scrap... 01678_ Found Spk. Treads. 01678_ Found Sub. Monowheel. 01678_ Found 56 Matter. 01701_ Searching scrap... 01701_ Found Mak. Sword. 01701_ Found Mak. Light Armor Plating. 01701_ Found 70 Matter. 01702_ Acquired 10 matter. 01704_ Dropped Lgt. Treads. 01709_ Acquired Mak. Light Armor Plating. 01754_ Acquired 5 matter. Map ----- +----------------------------------------------------+ | ??????????????## ### #?????? | | ???????????????# ### #?????? | | ???????????????### ##????? | | ?????????????????# ##???? | | ???????????????#?## #??## | | ??????????????# ?### #? | | ??????????????# #??## ## | | ??????????????# ##?# | | ??????????????# #?## # | | ??????????????? ### # | | ????????????????# ## | | ???????????????## # # | | ???????????????# # | | ???????????????# ## ## | | ??????????????## ## | | ??????????????# # | | ??????????????# # | | ??????????????# # | | ??????????????# | | ??#####?####?## | | ?##%=<###<<### | | ?#% < # <### ### | | ?#< # <## #?## # | | ?# # = "## #??## ## ## | | ?#< R # #???# #?###? | | ?#<<= @# ## ## #??? #???? | | ?# ### # #"! #??? ??? | | ?###/%## # #??? ?? | | ???##### # #?? | | ?????? # # #??# | | ???? # ###" #??# # | | ??$ ?# ??# #?? # | | ?#""??#" ??## #??? ?? | | ?#????##"$#???# ??? ? ???? | | ???????####???# ????#???????? | | ??????????????# #???????????? | | ??????????????# #???????????? | | ???????????????# ##???????????? | | ????????????????##????????????? | | ??????????????????????????????? | | ??????????????????????????????? | | ??????????????????????????????? | | ??????????????????????????????? | | ??????????????????????????????? | | ??????????????????????????????? | | ??????????????????????????????? | | ??????????????????????????????? | | ??????????????????????????????? | | ??????????????????????????????? | | ??????????????????????????????? | +----------------------------------------------------+ Best States ------------- Heat Dissipation 25 Energy Generation 15 Energy Capacity 250 Matter Stores 300 Matter Capacity 300 Sight Range 21 Terrain Scan Density 10 Armor Coverage 100 Evasion (%) 55 Recoil Reduction 2 Item Schematics ----------------- None Robot Schematics ------------------ None Fabricated ------------ Nothing Repaired ---------- Nothing Alien Tech Used ----------------- None Achievements -------------- None Challenges ------------ None Game ------ Seed HoverThermalBlasthammer Manual? 0 Play Time 00:15:21 Cumulative 218.3 hours Start 2025.08.08 @ 23:31:55 End 2025.10.04 @ 13:07:20 Sessions 3 Manual Loads 0 Difficulty Rogue Special Mode None Game No. 142 Rogue 142 Adventurer 0 Explorer 0 Win Type - Total 18 Types 9/0/3/6/0/0/0/0/0/0 Lore% 71 Gallery% 64 Achievement% 62 Wizard Run 0 Options --------- Layout 0 ASCII 0 Keyboard 1 Movement Numpad Keybinds 0 Fullscreen 1 Font 36/Proggy Map View 76x50 Zoom Use 0% Tactical HUD 1 Map Filters NONE Filters NONE Steam 1 RUN: 2d0db920-5693-417f-a952-d4a907e17934